[Event "*** Titled Tuesday Blitz"]
[Site "Chess.com"]
[Date "2019.07.02"]
[Round "5"]
[White "ilm2034"]
[Black "Walter_White_Poland"]
[Result "1-0"]
[WhiteElo "2519"]
[BlackElo "2286"]
[TimeControl "180+2"]
[EndTime "14:08:56 PDT"]
[Termination "ilm2034 won by resignation"]

1. d4 {[%clk 0:01:49.1]} 1... d5 {[%clk 0:02:58.2]} 2. c4 {[%clk 0:01:50.6]}
2... e6 {[%clk 0:02:59]} 3. Nc3 {[%clk 0:01:52.1]} 3... Nf6 {[%clk 0:02:59.9]}
4. Nf3 {[%clk 0:01:53.5]} 4... Be7 {[%clk 0:03:00.8]} 5. Bg5 {[%clk 0:01:55]}
5... O-O {[%clk 0:03:01.7]} 6. e3 {[%clk 0:01:56]} 6... b6 {[%clk 0:03:02.9]} 7.
Bd3 {[%clk 0:01:57.5]} 7... Bb7 {[%clk 0:03:03.7]} 8. O-O {[%clk 0:01:59.2]}
8... Nbd7 {[%clk 0:03:03.8]} 9. Bh4 {[%clk 0:02:00.3]} 9... c5 {[%clk
0:03:04.5]} 10. dxc5 {[%clk 0:02:01]} 10... Nxc5 {[%clk 0:03:04.7]} 11. cxd5
{[%clk 0:02:01.9]} 11... Nxd5 {[%clk 0:03:02.7]} 12. Bxe7 {[%clk 0:02:02]} 12...
Qxe7 {[%clk 0:03:03.8]} 13. Nxd5 {[%clk 0:02:02.9]} 13... Bxd5 {[%clk
0:03:04.8]} 14. Be2 {[%clk 0:02:03.3]} 14... Rfd8 {[%clk 0:03:04.2]} 15. Qe1
{[%clk 0:01:59.8]} 15... Qf6 {[%clk 0:02:46]} 16. b3 {[%clk 0:01:54.6]} 16... h6
{[%clk 0:02:24.4]} 17. Qb4 {[%clk 0:01:48.7]} 17... Qb2 {[%clk 0:01:56.7]} 18.
Nd4 {[%clk 0:01:43.2]} 18... Ne4 {[%clk 0:01:37.1]} 19. Rfb1 {[%clk 0:01:36]}
19... Qc3 {[%clk 0:01:30.7]} 20. Qxc3 {[%clk 0:01:34.5]} 20... Nxc3 {[%clk
0:01:30.9]} 21. Rc1 {[%clk 0:01:36.2]} 21... Nxe2+ {[%clk 0:01:24.9]} 22. Nxe2
{[%clk 0:01:38.1]} 22... Rac8 {[%clk 0:01:25.5]} 23. Rxc8 {[%clk 0:01:38.3]}
23... Rxc8 {[%clk 0:01:26.6]} 24. Rc1 {[%clk 0:01:40.2]} 24... Rxc1+ {[%clk
0:01:26.8]} 25. Nxc1 {[%clk 0:01:41.1]} 25... e5 {[%clk 0:01:27.5]} 26. Kf1
{[%clk 0:01:40.7]} 26... f6 {[%clk 0:01:27.5]} 27. f3 {[%clk 0:01:39.5]} 27...
Kf7 {[%clk 0:01:26.6]} 28. e4 {[%clk 0:01:39.2]} 28... Be6 {[%clk 0:01:27.7]}
29. Ke2 {[%clk 0:01:38.1]} 29... Ke7 {[%clk 0:01:27.5]} 30. Nd3 {[%clk
0:01:37.6]} 30... Kd6 {[%clk 0:01:27.5]} 31. Nb2 {[%clk 0:01:33.3]} 31... a5
{[%clk 0:01:27.1]} 32. Kd3 {[%clk 0:01:33.9]} 32... Kc5 {[%clk 0:01:24.3]} 33.
Na4+ {[%clk 0:01:31.3]} 33... Kb5 {[%clk 0:01:24.4]} 34. Kc3 {[%clk 0:01:25.9]}
34... Kc6 {[%clk 0:01:24.4]} 35. Kd3 {[%clk 0:01:24.1]} 35... b5 {[%clk
0:01:23.6]} 36. Nc3 {[%clk 0:01:24.6]} 36... Kc5 {[%clk 0:01:24.1]} 37. Ne2
{[%clk 0:01:24.8]} 37... b4 {[%clk 0:01:18]} 38. Ng3 {[%clk 0:01:23.1]} 38... g6
{[%clk 0:01:12.2]} 39. Nf1 {[%clk 0:01:24]} 39... Bc8 {[%clk 0:01:11.6]} 40. Ne3
{[%clk 0:01:25.1]} 40... Ba6+ {[%clk 0:01:10.8]} 41. Kd2 {[%clk 0:01:26.6]}
41... Bb7 {[%clk 0:01:02.1]} 42. Ng4 {[%clk 0:01:27.5]} 42... f5 {[%clk
0:00:55.7]} 43. exf5 {[%clk 0:01:27.8]} 43... gxf5 {[%clk 0:00:56.7]} 44. Nxh6
{[%clk 0:01:29.5]} 44... e4 {[%clk 0:00:55.2]} 45. fxe4 {[%clk 0:01:20.6]} 45...
Bxe4 {[%clk 0:00:54.3]} 46. g3 {[%clk 0:01:18.1]} 46... Bb1 {[%clk 0:00:54]} 47.
Kc1 {[%clk 0:01:19.3]} 47... Be4 {[%clk 0:00:39.5]} 48. Nf7 {[%clk 0:01:20.3]}
48... Kd4 {[%clk 0:00:34.3]} 49. h4 {[%clk 0:01:18.7]} 49... Bd5 {[%clk
0:00:24.7]} 50. Nd6 {[%clk 0:01:19.5]} 50... Ke5 {[%clk 0:00:24.7]} 51. Nc4+
{[%clk 0:01:20.1]} 51... Ke4 {[%clk 0:00:15.5]} 52. h5 {[%clk 0:01:18.8]} 52...
Kf3 {[%clk 0:00:14.5]} 53. h6 {[%clk 0:01:15.9]} 53... Bg8 {[%clk 0:00:15.1]}
54. Nd6 {[%clk 0:01:14.9]} 54... Bh7 {[%clk 0:00:12.8]} 55. Nf7 {[%clk
0:01:09.3]} 55... Kxg3 {[%clk 0:00:13.3]} 56. Ng5 {[%clk 0:01:10.6]} 56... Bg6
{[%clk 0:00:11.1]} 57. h7 {[%clk 0:01:11.2]} 57... Bxh7 {[%clk 0:00:12.2]} 58.
Nxh7 {[%clk 0:01:13.1]} 58... f4 {[%clk 0:00:13.4]} 59. Ng5 {[%clk 0:01:10.9]}
59... f3 {[%clk 0:00:13.9]} 60. Kd2 {[%clk 0:01:09.5]} 60... f2 {[%clk
0:00:12.3]} 61. Ne4+ {[%clk 0:01:08.7]} 61... Kf3 {[%clk 0:00:12.5]} 62. Nxf2
{[%clk 0:01:05.9]} 62... Kxf2 {[%clk 0:00:11.8]} 63. Kd3 {[%clk 0:01:07.8]}
63... Ke1 {[%clk 0:00:08]} 64. Kc4 {[%clk 0:01:08.9]} 64... Kd2 {[%clk
0:00:07.2]} 65. Kb5 {[%clk 0:01:10.4]} 65... Kc2 {[%clk 0:00:03.8]} 66. Kxa5
{[%clk 0:01:11.6]} 1-0

[Event "*** Titled Tuesday Blitz"]
[Site "Chess.com"]
[Date "2019.07.02"]
[Round "5"]
[White "KamilPlichta"]
[Black "Padenie_Zvezd"]
[Result "0-1"]
[WhiteElo "2786"]
[BlackElo "2710"]
[TimeControl "180+2"]
[EndTime "14:08:58 PDT"]
[Termination "Padenie_Zvezd won by resignation"]

1. d4 {[%clk 0:03:01.9]} 1... d5 {[%clk 0:03:00.4]} 2. Bg5 {[%clk 0:03:01.3]}
2... c6 {[%clk 0:02:57.4]} 3. Nd2 {[%clk 0:03:01.1]} 3... h6 {[%clk 0:02:54.3]}
4. Bh4 {[%clk 0:03:01.9]} 4... Qb6 {[%clk 0:02:55.4]} 5. Nb3 {[%clk 0:02:53.5]}
5... a5 {[%clk 0:02:45.4]} 6. a4 {[%clk 0:02:52.3]} 6... e5 {[%clk 0:02:45.8]}
7. e3 {[%clk 0:02:38.1]} 7... e4 {[%clk 0:02:40.1]} 8. f3 {[%clk 0:02:29.6]}
8... Bf5 {[%clk 0:02:34]} 9. fxe4 {[%clk 0:02:26.9]} 9... Bxe4 {[%clk
0:02:35.9]} 10. Nf3 {[%clk 0:02:27]} 10... Bb4+ {[%clk 0:02:31.8]} 11. Kf2
{[%clk 0:02:25.1]} 11... Ne7 {[%clk 0:02:27.5]} 12. Bg3 {[%clk 0:02:07.8]} 12...
Nf5 {[%clk 0:02:24.5]} 13. Bd3 {[%clk 0:02:03.6]} 13... Nxg3 {[%clk 0:02:22.9]}
14. hxg3 {[%clk 0:02:04.3]} 14... Nd7 {[%clk 0:02:21.5]} 15. Ng5 {[%clk
0:01:48.8]} 15... Bxd3 {[%clk 0:02:15.7]} 16. Qxd3 {[%clk 0:01:47.2]} 16...
O-O-O {[%clk 0:02:16.3]} 17. Nf3 {[%clk 0:01:42.2]} 17... Nf6 {[%clk 0:02:17.5]}
18. Rh3 {[%clk 0:01:32.6]} 18... Rhe8 {[%clk 0:02:13.8]} 19. Ne5 {[%clk
0:01:25.3]} 19... Ne4+ {[%clk 0:02:05]} 20. Kg1 {[%clk 0:01:26]} 20... f6 {[%clk
0:02:03.9]} 21. Nf3 {[%clk 0:01:21.7]} 21... Qc7 {[%clk 0:02:04.7]} 22. g4
{[%clk 0:01:15.4]} 22... Qd7 {[%clk 0:02:02.9]} 23. c3 {[%clk 0:01:12.5]} 23...
Bd6 {[%clk 0:02:02.4]} 24. Nxa5 {[%clk 0:01:13.4]} 24... Qxg4 {[%clk 0:02:02.3]}
25. Rf1 {[%clk 0:01:02.3]} 25... Re7 {[%clk 0:01:51.8]} 26. Nb3 {[%clk
0:01:00.8]} 26... Rde8 {[%clk 0:01:52.2]} 27. Nbd2 {[%clk 0:00:59.7]} 27... Ng3
{[%clk 0:01:43.5]} 28. Re1 {[%clk 0:00:59.8]} 28... Bf4 {[%clk 0:01:43.9]} 29.
Rh4 {[%clk 0:00:53.8]} 29... Qxh4 {[%clk 0:01:07]} 30. Nxh4 {[%clk 0:00:51.5]}
30... Rxe3 {[%clk 0:01:04.3]} 31. Rxe3 {[%clk 0:00:40.2]} 31... Bxe3+ {[%clk
0:01:03.2]} 32. Kh2 {[%clk 0:00:40.1]} 32... Bf4 {[%clk 0:01:05.1]} 33. Ng6
{[%clk 0:00:33.8]} 33... Bd6 {[%clk 0:00:49.6]} 34. Nf3 {[%clk 0:00:34.8]} 34...
Re3 {[%clk 0:00:46.2]} 35. Qc2 {[%clk 0:00:27.8]} 35... Re2 {[%clk 0:00:47]} 36.
Qb1 {[%clk 0:00:24.8]} 36... Rf2 {[%clk 0:00:46]} 37. Kg1 {[%clk 0:00:20]} 37...
Re2 {[%clk 0:00:36]} 38. Ngh4 {[%clk 0:00:21]} 38... Re4 {[%clk 0:00:34.2]} 39.
Ng6 {[%clk 0:00:13.7]} 39... h5 {[%clk 0:00:31]} 40. c4 {[%clk 0:00:14.9]} 40...
dxc4 {[%clk 0:00:29.5]} 41. a5 {[%clk 0:00:11.9]} 41... Kc7 {[%clk 0:00:26.1]}
42. Qc2 {[%clk 0:00:13.1]} 42... Re2 {[%clk 0:00:21.6]} 43. Qxc4 {[%clk
0:00:13.6]} 43... Rxb2 {[%clk 0:00:22.9]} 44. Qf7+ {[%clk 0:00:14.9]} 44... Kb8
{[%clk 0:00:23.2]} 45. Qxg7 {[%clk 0:00:13.6]} 45... Rb1+ {[%clk 0:00:23.9]} 46.
Kf2 {[%clk 0:00:12.8]} 46... Rf1+ {[%clk 0:00:22.7]} 47. Ke3 {[%clk 0:00:14.3]}
47... Nf5+ {[%clk 0:00:24.6]} 48. Ke2 {[%clk 0:00:15.8]} 48... Nxg7 {[%clk
0:00:25.3]} 49. Kxf1 {[%clk 0:00:17.1]} 49... Ka7 {[%clk 0:00:26.8]} 50. Nd2
{[%clk 0:00:13.5]} 50... Ka6 {[%clk 0:00:27.7]} 51. Nh4 {[%clk 0:00:14.8]} 51...
Bg3 {[%clk 0:00:26.5]} 52. Nhf3 {[%clk 0:00:13.2]} 52... Bc7 {[%clk 0:00:24.8]}
53. Ne4 {[%clk 0:00:10.6]} 53... Kxa5 {[%clk 0:00:25.1]} 54. Nxf6 {[%clk
0:00:11.7]} 54... b5 {[%clk 0:00:25.6]} 55. Ke2 {[%clk 0:00:13]} 55... Kb4
{[%clk 0:00:25.5]} 56. Kd3 {[%clk 0:00:14.3]} 56... Ka3 {[%clk 0:00:26.8]} 57.
Nd2 {[%clk 0:00:14.9]} 57... b4 {[%clk 0:00:27.8]} 58. Nc4+ {[%clk 0:00:16.4]}
58... Ka2 {[%clk 0:00:29.1]} 59. Nd7 {[%clk 0:00:17.5]} 59... b3 {[%clk
0:00:29.8]} 60. Nc5 {[%clk 0:00:18.8]} 60... b2 {[%clk 0:00:29.6]} 61. Nxb2
{[%clk 0:00:20.2]} 61... Kxb2 {[%clk 0:00:31.5]} 62. Na6 {[%clk 0:00:20.7]}
62... Bd6 {[%clk 0:00:32.3]} 63. Kc4 {[%clk 0:00:19.9]} 63... Nf5 {[%clk
0:00:33]} 64. Nc5 {[%clk 0:00:21.4]} 64... Ne3+ {[%clk 0:00:29.3]} 65. Kd3
{[%clk 0:00:22.6]} 65... Bxc5 {[%clk 0:00:30]} 0-1

[Event "*** Titled Tuesday Blitz"]
[Site "Chess.com"]
[Date "2019.07.02"]
[Round "5"]
[White "Oleg_Papayan"]
[Black "Zubrrr"]
[Result "1/2-1/2"]
[WhiteElo "2523"]
[BlackElo "2734"]
[TimeControl "180+2"]
[EndTime "14:09:19 PDT"]
[Termination "Game drawn by agreement"]

1. e4 {[%clk 0:03:01.9]} 1... c5 {[%clk 0:03:00.4]} 2. Nf3 {[%clk 0:03:02.7]}
2... d6 {[%clk 0:03:01.6]} 3. d4 {[%clk 0:03:03.9]} 3... cxd4 {[%clk 0:03:03.5]}
4. Nxd4 {[%clk 0:03:05.1]} 4... Nf6 {[%clk 0:03:04.7]} 5. Nc3 {[%clk 0:03:05.7]}
5... a6 {[%clk 0:03:05.7]} 6. Be3 {[%clk 0:03:01.1]} 6... e6 {[%clk 0:03:06.2]}
7. g4 {[%clk 0:02:43.9]} 7... e5 {[%clk 0:03:06.4]} 8. Nf5 {[%clk 0:02:45.1]}
8... h5 {[%clk 0:03:07.3]} 9. gxh5 {[%clk 0:02:04]} 9... d5 {[%clk 0:02:26.3]}
10. Bg5 {[%clk 0:01:57]} 10... d4 {[%clk 0:02:24.5]} 11. Bxf6 {[%clk 0:01:50.4]}
11... gxf6 {[%clk 0:02:21.1]} 12. Ne2 {[%clk 0:01:33.4]} 12... Qb6 {[%clk
0:02:19]} 13. Bg2 {[%clk 0:01:08.5]} 13... Qxb2 {[%clk 0:02:09.2]} 14. O-O
{[%clk 0:01:08.9]} 14... Nc6 {[%clk 0:02:09.9]} 15. Rb1 {[%clk 0:00:47.2]} 15...
Qxa2 {[%clk 0:02:00.4]} 16. c3 {[%clk 0:00:48]} 16... Bxf5 {[%clk 0:01:11.2]}
17. exf5 {[%clk 0:00:48.9]} 17... O-O-O {[%clk 0:01:09.6]} 18. cxd4 {[%clk
0:00:45.4]} 18... exd4 {[%clk 0:01:07.6]} 19. Nf4 {[%clk 0:00:33.2]} 19... Rg8
{[%clk 0:01:02.4]} 20. Qc1 {[%clk 0:00:29.4]} 20... Bh6 {[%clk 0:00:56.2]} 21.
Kh1 {[%clk 0:00:28.5]} 21... Rxg2 {[%clk 0:00:52.6]} 22. Kxg2 {[%clk 0:00:27.6]}
22... Rg8+ {[%clk 0:00:51.6]} 23. Kh1 {[%clk 0:00:26.9]} 23... Rg4 {[%clk
0:00:46.9]} 24. Rb2 {[%clk 0:00:20.7]} 24... Qa5 {[%clk 0:00:42.8]} 25. Rc2
{[%clk 0:00:19.6]} 25... Bxf4 {[%clk 0:00:38.2]} 26. Rxc6+ {[%clk 0:00:20.8]}
26... bxc6 {[%clk 0:00:22.4]} 27. Qxc6+ {[%clk 0:00:22.7]} 27... Qc7 {[%clk
0:00:21.6]} 28. Qe8+ {[%clk 0:00:20]} 28... Qd8 {[%clk 0:00:22.6]} 29. Qc6+
{[%clk 0:00:19]} 29... Qc7 {[%clk 0:00:21]} 30. Qe8+ {[%clk 0:00:20]} 30... Kb7
{[%clk 0:00:22.1]} 31. Rb1+ {[%clk 0:00:20.8]} 31... Ka7 {[%clk 0:00:23.5]} 32.
Qe4 {[%clk 0:00:11.9]} 32... Qd7 {[%clk 0:00:19.7]} 33. h6 {[%clk 0:00:12.6]}
33... Rh4 {[%clk 0:00:20.1]} 34. h7 {[%clk 0:00:12.5]} 34... Rxh2+ {[%clk
0:00:19.7]} 35. Kg1 {[%clk 0:00:14.1]} 35... Rxh7 {[%clk 0:00:19.9]} 36. Qxf4
{[%clk 0:00:15.7]} 36... Rg7+ {[%clk 0:00:20.9]} 37. Kf1 {[%clk 0:00:16.6]}
37... Rg8 {[%clk 0:00:21.8]} 38. Rb4 {[%clk 0:00:16.9]} 38... Rd8 {[%clk
0:00:22.5]} 39. Qe4 {[%clk 0:00:15.7]} 39... Qc7 {[%clk 0:00:19.8]} 40. Rxd4
{[%clk 0:00:14.8]} 40... Qc1+ {[%clk 0:00:20.6]} 41. Kg2 {[%clk 0:00:15.8]}
41... Rg8+ {[%clk 0:00:19.9]} 42. Kf3 {[%clk 0:00:17.2]} 42... Qh1+ {[%clk
0:00:20]} 43. Ke2 {[%clk 0:00:17.9]} 43... Qxe4+ {[%clk 0:00:19.3]} 44. Rxe4
{[%clk 0:00:19.8]} 44... Rb8 {[%clk 0:00:18.3]} 45. Rd4 {[%clk 0:00:11]} 45...
Rb5 {[%clk 0:00:18.1]} 46. Rd7+ {[%clk 0:00:10.9]} 46... Kb8 {[%clk 0:00:15.1]}
47. Rd6 {[%clk 0:00:09.7]} 47... Ka7 {[%clk 0:00:10.4]} 48. Rxf6 {[%clk
0:00:10.9]} 48... Rb7 {[%clk 0:00:12]} 49. Rd6 {[%clk 0:00:10.8]} 49... a5
{[%clk 0:00:13.4]} 50. f6 {[%clk 0:00:12.3]} 50... Rc7 {[%clk 0:00:11.3]} 51.
Kd3 {[%clk 0:00:11.9]} 51... Kb7 {[%clk 0:00:11.3]} 52. f4 {[%clk 0:00:12.2]}
52... Ka7 {[%clk 0:00:05.8]} 53. f5 {[%clk 0:00:11.9]} 53... Rb7 {[%clk
0:00:05.9]} 54. Kc4 {[%clk 0:00:10.7]} 54... Rb6 {[%clk 0:00:06.5]} 55. Rd7+
{[%clk 0:00:11.6]} 55... Rb7 {[%clk 0:00:07.8]} 56. Rd8 {[%clk 0:00:09.5]} 56...
Kb6 {[%clk 0:00:07.9]} 57. Re8 {[%clk 0:00:10.4]} 57... Rc7+ {[%clk 0:00:07.7]}
58. Kb3 {[%clk 0:00:11.2]} 58... Kc6 {[%clk 0:00:07]} 59. Re7 {[%clk 0:00:12.6]}
59... Kd6 {[%clk 0:00:07.7]} 60. Re8 {[%clk 0:00:10.4]} 60... Rc5 {[%clk
0:00:07.9]} 61. Re7 {[%clk 0:00:11.8]} 61... Rxf5 {[%clk 0:00:06.4]} 62. Rxf7
{[%clk 0:00:13.2]} 62... Ke6 {[%clk 0:00:08]} 1/2-1/2

[Event "*** Titled Tuesday Blitz"]
[Site "Chess.com"]
[Date "2019.07.02"]
[Round "5"]
[White "Artur0208"]
[Black "JonahWillow"]
[Result "0-1"]
[WhiteElo "2750"]
[BlackElo "2718"]
[TimeControl "180+2"]
[EndTime "14:09:54 PDT"]
[Termination "JonahWillow won by resignation"]

1. d4 {[%clk 0:03:01.8]} 1... Nf6 {[%clk 0:03:00.6]} 2. c4 {[%clk 0:03:03.1]}
2... c5 {[%clk 0:03:02]} 3. d5 {[%clk 0:03:04.1]} 3... e6 {[%clk 0:03:03.4]} 4.
Nc3 {[%clk 0:03:05.1]} 4... exd5 {[%clk 0:03:05.3]} 5. cxd5 {[%clk 0:03:06.6]}
5... d6 {[%clk 0:03:07.2]} 6. e4 {[%clk 0:03:07.7]} 6... g6 {[%clk 0:03:08.4]}
7. h3 {[%clk 0:03:09]} 7... Bg7 {[%clk 0:03:09.5]} 8. Nf3 {[%clk 0:03:10.2]}
8... O-O {[%clk 0:03:10.7]} 9. Bd3 {[%clk 0:03:09.1]} 9... b5 {[%clk 0:03:12.3]}
10. Nxb5 {[%clk 0:03:04.3]} 10... Re8 {[%clk 0:03:12.8]} 11. O-O {[%clk
0:03:02.1]} 11... Nxe4 {[%clk 0:03:13.7]} 12. Re1 {[%clk 0:02:57.8]} 12... a6
{[%clk 0:03:14.6]} 13. Nc3 {[%clk 0:02:56.9]} 13... Nxc3 {[%clk 0:03:13.5]} 14.
bxc3 {[%clk 0:02:56.9]} 14... Bxc3 {[%clk 0:02:44.7]} 15. Rxe8+ {[%clk
0:02:52.9]} 15... Qxe8 {[%clk 0:02:46.6]} 16. Rb1 {[%clk 0:02:42.5]} 16... Nd7
{[%clk 0:02:47.1]} 17. Qa4 {[%clk 0:02:08.5]} 17... Nf6 {[%clk 0:02:37.6]} 18.
Qc4 {[%clk 0:01:25.7]} 18... Ba5 {[%clk 0:02:26.2]} 19. Bb2 {[%clk 0:01:25.7]}
19... Bd8 {[%clk 0:02:23.4]} 20. Re1 {[%clk 0:00:32.1]} 20... Qf8 {[%clk
0:02:23.6]} 21. Qf4 {[%clk 0:00:11.5]} 21... Nxd5 {[%clk 0:02:03]} 22. Qe4
{[%clk 0:00:11.9]} 22... Rb8 {[%clk 0:01:52.1]} 23. Ba1 {[%clk 0:00:09.6]} 23...
Nb4 {[%clk 0:01:44.4]} 24. Bc4 {[%clk 0:00:06.1]} 24... Bf5 {[%clk 0:01:43.1]}
25. Qe2 {[%clk 0:00:04.5]} 25... Nc2 {[%clk 0:01:39.6]} 26. Rc1 {[%clk
0:00:03.8]} 26... Nxa1 {[%clk 0:01:39.6]} 27. Rxa1 {[%clk 0:00:05.7]} 27... Bf6
{[%clk 0:01:40.8]} 28. Rd1 {[%clk 0:00:06.9]} 28... Qe7 {[%clk 0:01:32.5]} 29.
Qd2 {[%clk 0:00:06.5]} 29... Rb6 {[%clk 0:01:10.6]} 30. Re1 {[%clk 0:00:07.9]}
30... Qd7 {[%clk 0:01:02.9]} 31. Qa5 {[%clk 0:00:06.1]} 31... Rb4 {[%clk
0:00:58.5]} 32. Qxa6 {[%clk 0:00:07]} 32... Ra4 {[%clk 0:00:49.4]} 33. Qb5
{[%clk 0:00:04.1]} 33... Qxb5 {[%clk 0:00:50.3]} 34. Bxb5 {[%clk 0:00:06]} 34...
Rxa2 {[%clk 0:00:51.9]} 35. Bc4 {[%clk 0:00:06.2]} 35... Ra1 {[%clk 0:00:52.4]}
36. Rxa1 {[%clk 0:00:05]} 36... Bxa1 {[%clk 0:00:54.3]} 37. Nd2 {[%clk
0:00:06.1]} 37... Be6 {[%clk 0:00:54.8]} 38. Bxe6 {[%clk 0:00:04.3]} 38... fxe6
{[%clk 0:00:56.7]} 39. Ne4 {[%clk 0:00:06.2]} 39... Be5 {[%clk 0:00:56.3]} 40.
g3 {[%clk 0:00:06.8]} 40... c4 {[%clk 0:00:57]} 41. Kf1 {[%clk 0:00:08.1]} 41...
d5 {[%clk 0:00:58.1]} 42. Ng5 {[%clk 0:00:09.6]} 42... d4 {[%clk 0:00:18.9]} 43.
Nxe6 {[%clk 0:00:10]} 43... d3 {[%clk 0:00:18.1]} 44. f4 {[%clk 0:00:11.5]}
44... c3 {[%clk 0:00:16.6]} 45. Nc5 {[%clk 0:00:10.2]} 45... d2 {[%clk
0:00:13.8]} 46. Ke2 {[%clk 0:00:11.2]} 46... Bd4 {[%clk 0:00:11.3]} 47. Ne4
{[%clk 0:00:11.3]} 47... Kf7 {[%clk 0:00:10.4]} 48. g4 {[%clk 0:00:11.3]} 48...
h6 {[%clk 0:00:11]} 49. f5 {[%clk 0:00:12.1]} 49... gxf5 {[%clk 0:00:08.6]} 50.
gxf5 {[%clk 0:00:14]} 50... Be5 {[%clk 0:00:10.5]} 51. Kd1 {[%clk 0:00:15.2]}
51... Ke7 {[%clk 0:00:10.5]} 52. Kc2 {[%clk 0:00:16.4]} 52... Kd7 {[%clk
0:00:11]} 53. Kd1 {[%clk 0:00:17]} 53... Kc6 {[%clk 0:00:11]} 54. f6 {[%clk
0:00:17.1]} 54... Kd7 {[%clk 0:00:12.5]} 55. Nf2 {[%clk 0:00:12.6]} 55... Bxf6
{[%clk 0:00:12.4]} 56. Ng4 {[%clk 0:00:14]} 56... Bg7 {[%clk 0:00:11.1]} 57. Ne3
{[%clk 0:00:13.7]} 57... Ke6 {[%clk 0:00:12.5]} 58. Kc2 {[%clk 0:00:15.3]} 58...
Bd4 {[%clk 0:00:10.7]} 59. Ng4 {[%clk 0:00:14.8]} 59... h5 {[%clk 0:00:12]} 60.
Nh2 {[%clk 0:00:16.2]} 60... Kf5 {[%clk 0:00:13.2]} 61. Nf3 {[%clk 0:00:17.6]}
61... Bf6 {[%clk 0:00:14.8]} 62. Nxd2 {[%clk 0:00:19]} 62... cxd2 {[%clk
0:00:14.6]} 63. Kxd2 {[%clk 0:00:20.9]} 63... Kf4 {[%clk 0:00:14.8]} 64. h4
{[%clk 0:00:14.7]} 64... Bxh4 {[%clk 0:00:07.7]} 65. Ke2 {[%clk 0:00:15.9]}
65... Kg3 {[%clk 0:00:07.3]} 66. Kf1 {[%clk 0:00:12.4]} 66... Kh2 {[%clk
0:00:08.7]} 67. Ke2 {[%clk 0:00:13.5]} 67... Kg2 {[%clk 0:00:10.2]} 68. Ke3
{[%clk 0:00:14.5]} 68... Bg3 {[%clk 0:00:11.5]} 69. Ke2 {[%clk 0:00:15.8]} 69...
h4 {[%clk 0:00:13.4]} 70. Ke3 {[%clk 0:00:16.5]} 70... h3 {[%clk 0:00:15.3]} 71.
Ke2 {[%clk 0:00:17.9]} 71... h2 {[%clk 0:00:17.2]} 72. Ke3 {[%clk 0:00:19.4]}
72... h1=Q {[%clk 0:00:19.1]} 73. Kd3 {[%clk 0:00:21.3]} 73... Qe1 {[%clk
0:00:20.4]} 74. Kc4 {[%clk 0:00:23.2]} 74... Kf3 {[%clk 0:00:22.3]} 75. Kb5
{[%clk 0:00:25.1]} 75... Qc1 {[%clk 0:00:23.2]} 0-1